Cogmind - Beta 17 @@@ ROGUE MODE // 2026.06.28 @ 20:12:41 Player: foolish jester Result: Self-destructed Performance ------------- Evolutions (2) 1000 Regions Visited (5) 1000 Robots Destroyed (38) 190 Value Destroyed (963) 963 Prototype IDs (23) 460 Alien Tech Used (0) 0 Bonus (321) 321 TOTAL SCORE: 3934 Bonus ------- Follower Combat Kills 21 Aligned with FarCom 300 Cogmind --------- Core Integrity 484/550 Matter 39/300 Energy 16/100 System Corruption 0% Temperature Cool (0) Movement Flying (114) Ox1 Location -8/Materials Parts ------- > --- POWER (2) -------- (None) > --- PROPULSION (4) --- Flight Unit Cesium-ion Thruster > --- UTILITY (3) ------ Improved Terrain Scanner Advanced Terrain Scan Processor Cloak of Protection > --- WEAPON (2) ------- Rocket Launcher > --- INVENTORY (5) ---- Trap Scanner Grenade Launcher Rocket Launcher Peak State ------------ > --- POWER ------------ Improved Ion Engine > --- PROPULSION ------- Flight Unit Flight Unit Cesium-ion Thruster > --- UTILITY ---------- Improved Terrain Scanner Advanced Terrain Scan Processor Cloak of Protection > --- WEAPON ----------- Rocket Launcher Rocket Launcher > --- INVENTORY -------- Trap Scanner EM Pulse Gun Grenade Launcher Rocket Launcher [Rating: 26] Favorites ----------- Power Improved Ion Engine Engine Improved Ion Engine Propulsion Flight Unit Treads Light Treads Leg Aluminum Leg Wheel Compact Wheel Flight Unit Flight Unit Utility Improved Terrain Scanner Device Improved Terrain Scanner Storage Small Storage Unit Processor Advanced Terrain Scan Processor Weapon Rocket Launcher Energy Gun EM Pulse Gun Ballistic Gun Assault Rifle Launcher Rocket Launcher Build | -11 -10 -10 -10 -9 -8 ------- Run | Yrd Mat Min Exi Min Mat Slots Evolved 4 | . . . . . 4 Power 1 | . . . . . 1 Propulsion 2 | . . . . . 2 Utility 1 | . . . . . 1 Weapon . | . . . . . . Parts Attached 20 | 8 3 4 1 . 4 Power 3 | 1 1 1 . . . Engine 3 | 1 1 1 . . . Core . | . . . . . . Reactor . | . . . . . . Propulsion 6 | 3 . 2 . . 1 Treads 1 | 1 . . . . . Leg 1 | 1 . . . . . Wheel 1 | 1 . . . . . Hover . | . . . . . . Flight 3 | . . 2 . . 1 Utility 5 | 2 . 1 1 . 1 Device 3 | 1 . 1 1 . . Storage 1 | 1 . . . . . Processor 1 | . . . . . 1 Hackware . | . . . . . . Protection . | . . . . . . Artifact . | . . . . . . Weapon 6 | 2 2 . . . 2 Energy Gun 1 | 1 . . . . . Energy Cannon . | . . . . . . Ballistic Gun 1 | 1 . . . . . Ballistic Cannon . | . . . . . . Launcher 4 | . 2 . . . 2 Special Weapon . | . . . . . . Impact Weapon . | . . . . . . Slashing Weapon . | . . . . . . Piercing Weapon . | . . . . . . Special Melee Weapon . | . . . . . . Unidentified Prototypes . | . . . . . . Parts Lost 7 | . . 3 . . 4 Power 2 | . . 1 . . 1 Propulsion 3 | . . 2 . . 1 Utility . | . . . . . . Weapon 2 | . . . . . 2 Highest Loss Streak 2 | . . 2 . . 2 To Critical Strikes . | . . . . . . Average Backups 5 | 4 7 6 5 5 4 Power . | . 1 . . . . Propulsion . | 2 2 1 . . . Utility . | . 1 . . 1 1 Weapon 3 | . 3 4 4 4 3 Tool/Special . | . . . . . . Unused Backups 8 | . 6 . . . 2 Power 1 | . 1 . . . . Propulsion 3 | . 3 . . . . Utility 2 | . 1 . . . 1 Weapon 2 | . 1 . . . 1 Tool/Special . | . . . . . . Average Slot Usage (%) 83 | . 100 85 85 85 70 Engine 12 | . 14 14 14 14 8 Treads 5 | . 14 9 . . . Wheel 2 | . 14 . . . . Flight 16 | . . 9 28 28 23 Device 20 | . 14 18 28 28 18 Storage 5 | . 14 9 . . . Processor 1 | . . . . . 6 Energy Gun 5 | . 2 . 14 14 5 Launcher 12 | . 21 21 . . 9 Peak Build Rating 26 | 10 13 14 17 17 26 Average Rating 15 | 6 12 11 15 17 22 On Entrance 11 | . 10 13 12 17 17 Avg Prop Armor Cover (%) 5 | 5 5 . . . . Naked Turns . | . . . . . . Heaviest Build 23 | 13 21 21 18 18 23 Greatest Support 20 | 20 20 20 8 8 13 Greatest Overweight (x) 2 | 2 1 1 2 2 2 Average Overweight (x) 1 | . . . 1 2 1 Largest Inventory Capacity 8 | 8 8 8 5 5 5 Average Capacity 6 | 7 8 6 5 5 5 Most Carried 8 | 8 8 8 5 5 5 Average Carried 5 | 4 7 6 5 5 4 Final Capacity 8 | 8 8 5 5 5 5 Final Carried 8 | 8 8 5 5 5 3 Class Distribution -------------------- 70% | Mutant 16% | Scavenger-Mutant 13% | Skirmisher Dominant Class ---------------- Mutant | -10/Materials Mutant | -10/Mines Mutant | -10/Exiles Mutant | -9/Mines Skirmisher | -8/Materials Resources | -11 -10 -10 -10 -9 -8 ----------- Run | Yrd Mat Min Exi Min Mat Matter Collected 931 | 272 119 289 . 53 198 Remotely . | . . . . . . Salvage Created 837 | 159 67 81 . . 530 Parts 61 | 11 7 4 . . 39 Haulers Intercepted . | . . . . . . Recyclers Shooed 3 | . . . . . 3 Parts Field Recycled . | . . . . . . Retrieved Matter . | . . . . . . Parts Self-Destructed . | . . . . . . Prevented . | . . . . . . Parts Restored . | . . . . . . Kills | -11 -10 -10 -10 -9 -8 ------- Run | Yrd Mat Min Exi Min Mat Combat Hostiles Destroyed 28 | . 6 10 . . 12 Guns 3 | . . 2 . . 1 AOE 25 | . 6 8 . . 11 Classes Destroyed 10 | 2 2 1 . . 5 Worker 3 | . . . . . 3 Builder 7 | . . . . . 7 Tunneler 2 | 2 . . . . . Recycler 3 | 1 . . . . 2 Operator 2 | . . . . . 2 Watcher 1 | . . . . . 1 Swarmer 3 | . 3 . . . . Grunt 15 | . 3 2 . . 10 Sentry 2 | . . . . . 2 Assembled 8 | . . 8 . . . Best Kill Streak 7 | 3 3 3 . . 7 Combat Bots Only 5 | . 3 3 . . 5 Max Kills in Single Turn 3 | 2 3 2 . . 3 Gunslinging 1 | . . 1 . . . Exploded 3 | . 3 1 . . 3 Melee . | . . . . . . Uniques/NPCs Destroyed . | . . . . . . Combat | -11 -10 -10 -10 -9 -8 -------- Run | Yrd Mat Min Exi Min Mat Hostile Shots Fired 87 | . 14 26 . . 47 Missed 29 | . 4 8 . . 17 Hits 58 | . 10 18 . . 30 Melee 2 | . . 2 . . . Projectile 56 | . 10 16 . . 30 Critical Strikes 4 | . . . . . 4 Damage Taken 1223 | . 129 530 . . 564 Core 244 | . 42 136 . . 66 Absorbed by Shields . | . . . . . . Core Remaining (%) 64 | 100 . . . 28 . Volleys Fired 72 | 7 6 19 . . 40 Largest 2 | 2 2 2 . . 2 Hottest 66 | 60 66 66 . . 66 Shots Fired 95 | 14 11 24 . . 46 Gun 38 | 14 2 8 . . 14 Cannon . | . . . . . . Launcher 57 | . 9 16 . . 32 Special . | . . . . . . Kinetic 16 | 7 2 7 . . . Thermal . | . . . . . . Explosive 57 | . 9 16 . . 32 Electromagnetic 22 | 7 . 1 . . 14 Robot Hit Streak 4 | 3 4 3 . . 4 Robot Miss Streak 4 | 2 1 2 . . 4 Penetration Max . | . . . . . . Secondary Targets 1 | . . 1 . . . Max Gunslinging Chain 1 | . . 1 . . . Shots Hit Robots 35 | 8 3 8 . . 16 Core Hits 81 | 4 13 14 . . 50 Critical Kills . | . . . . . . Critical Parts Destroyed . | . . . . . . Critical Strikes 1 | . . . . . 1 Corrupt 1 | . . . . . 1 Melee Attacks . | . . . . . . Impact . | . . . . . . Slashing . | . . . . . . Piercing . | . . . . . . Sneak Attacks . | . . . . . . Combat Hostiles . | . . . . . . Follow-up Attacks . | . . . . . . Damage Inflicted 3606 | 135 652 613 . . 2206 Guns 301 | 135 . 58 . . 108 Cannons . | . . . . . . Explosions 3292 | . 645 555 . . 2092 Melee . | . . . . . . Ramming 13 | . 7 . . . 6 Kinetic 99 | 53 . 46 . . . Thermal 200 | . . . . . 200 Explosive 3092 | . 645 555 . . 1892 Electromagnetic 202 | 82 . 12 . . 108 Impact . | . . . . . . Slashing . | . . . . . . Piercing . | . . . . . . Highest Corruption 4 | . . 4 4 4 . Average Corruption 4 | . . 4 4 4 . Corruption Purged . | . . . . . . Corruption Blocked . | . . . . . . Effects 27 | . . 7 16 4 . Message Errors 3 | . . . 3 . . Matter Fused 10 | . . 1 8 1 . Heat Flow Errors 3 | . . 1 . 2 . Energy Discharges 1 | . . 1 . . . Data Loss (minor) 5 | . . 1 3 1 . Data Loss (major) 1 | . . . 1 . . Alerts 3 | . . 2 1 . . Weapon Failures 1 | . . 1 . . . Overload Shots . | . . . . . . Overflow Damage 165 | . 80 9 . . 76 Projectiles . | . . . . . . Explosions 165 | . 80 9 . . 76 Melee . | . . . . . . Knockbacks . | . . . . . . Impact . | . . . . . . Kinetic . | . . . . . . Secondary . | . . . . . . Self-Inflicted Damage 411 | . 25 293 . . 93 Shots 12 | . 1 8 . . 3 Rammed 6 | . 4 . . . 2 Targets Rammed 6 | . 4 . . . 2 Kicked . | . . . . . . Crushed . | . . . . . . Highest Temperature 207 | . 26 190 . 207 20 Average Temperature 48 | . 12 47 . 102 7 Received Heat Transfer 423 | . 48 105 . . 270 Siege Activations . | . . . . . . Martial Activations . | . . . . . . Shielding Activations . | . . . . . . Robots Disrupted . | . . . . . . Combat Hostiles . | . . . . . . Robots Corrupted . | . . . . . . Combat Hostiles . | . . . . . . Parts Fried . | . . . . . . Impact Corruptions . | . . . . . . Robots Melted . | . . . . . . Combat Hostiles . | . . . . . . Parts Melted . | . . . . . . Heat Transferred 300 | . . . . . 300 Parts Sabotaged . | . . . . . . Parts Stolen . | . . . . . . Parts Stripped . | . . . . . . Power Chain Reactions 2 | . . . . . 2 Alert | -11 -10 -10 -10 -9 -8 ------- Run | Yrd Mat Min Exi Min Mat Maximum Alert Level 1 | . . . . . 1 Low Security (%) 82 | 100 100 100 . 100 41 Level 1 17 | . . . . . 58 Level 2 . | . . . . . . Level 3 . | . . . . . . Level 4 . | . . . . . . Level 5 . | . . . . . . High Security . | . . . . . . Max Security . | . . . . . . Peak Influence 393 | 15 198 83 . . 393 Initial 42 | . . 42 . . . Average 79 | 1 107 13 . . 189 Influence Increases 1149 | 15 258 186 . . 690 Destroy 0b10 Robot/C 460 | . 120 40 . . 300 Destroy 0b10 Robot/NC 90 | 15 . . . . 75 Destroy Leader 112 | . 30 10 . . 72 Allied During Kill 22 | . . . . . 22 Successful Hack 4 | . 4 . . . . Disable Machine 90 | . 30 15 . . 45 Destroy Structure 311 | . 59 121 . . 131 Partial Spotted 15 | . 15 . . . . Lose Combat Pursuer 45 | . . . . . 45 Influence Decreases 775 | 15 150 294 . . 316 Entered New Map 66 | . . 66 . . . Time Decay 589 | 15 150 208 . . 216 Lost Part 60 | . . 20 . . 40 Lost Ally 60 | . . . . . 60 Squads Dispatched 6 | . 2 . . . 4 Investigation 1 | . . . . . 1 Extermination . | . . . . . . Reinforcement 5 | . 2 . . . 3 Assault . | . . . . . . Garrison . | . . . . . . Intercept . | . . . . . . Searches Triggered . | . . . . . . Construction Impeded 2 | . . . . . 2 Haulers Reinforced . | . . . . . . Active Scanning Responses . | . . . . . . Cargo Convoy Interrupts . | . . . . . . Stealth | -11 -10 -10 -10 -9 -8 --------- Run | Yrd Mat Min Exi Min Mat Distress Signals 2 | . . . . . 2 Communications Jammed . | . . . . . . Distress Signals . | . . . . . . Times Spotted 37 | . 9 8 . . 20 Peak Tracking Total 6 | . 4 2 . . 6 Tactical Retreats 2 | . . . . . 2 Traps | -11 -10 -10 -10 -9 -8 ------- Run | Yrd Mat Min Exi Min Mat Traps Triggered . | . . . . . . Indirectly . | . . . . . . Trap Hack Attempts . | . . . . . . Triggered . | . . . . . . Disarmed . | . . . . . . Reprogrammed . | . . . . . . Reused . | . . . . . . Traps Extracted . | . . . . . . Installed . | . . . . . . Triggered . | . . . . . . Machines | -11 -10 -10 -10 -9 -8 ---------- Run | Yrd Mat Min Exi Min Mat Machines Disabled 6 | . 2 1 . . 3 Max in Single Turn 2 | . 2 1 . . 1 Machines Repaired . | . . . . . . Machines Dismantled . | . . . . . . Machines Sabotaged . | . . . . . . Overloaded Fab Kills . | . . . . . . Hacking | -11 -10 -10 -10 -9 -8 --------- Run | Yrd Mat Min Exi Min Mat Machines Accessed 7 | . 2 2 2 . 1 Terminals 4 | . 2 1 . . 1 Fabricators . | . . . . . . Repair Stations . | . . . . . . Recycling Units . | . . . . . . Scanalyzers . | . . . . . . Garrison Access . | . . . . . . Total Hacks 34 | . 6 2 24 . 2 Successful 30 | . 3 2 24 . 1 Failed 4 | . 3 . . . 1 Catastrophic 1 | . 1 . . . . Database Lockouts . | . . . . . . Manual 8 | . 5 . 1 . 2 Terminals 9 | . 6 1 . . 2 Fabricators . | . . . . . . Repair Stations . | . . . . . . Recycling Units . | . . . . . . Scanalyzers . | . . . . . . Garrison Access . | . . . . . . Terminal Hacks 27 | . 1 2 24 . . Record 23 | . . . 23 . . Open Door 1 | . . 1 . . . Hauler Manifests 1 | . 1 . . . . Zone Layout 1 | . . 1 . . . Proto ID Catalog 1 | . . . 1 . . Fabricator Hacks . | . . . . . . Repair Station Hacks . | . . . . . . Recycling Unit Hacks . | . . . . . . Scanalyzer . | . . . . . . Garrison Access Hacks . | . . . . . . Unauthorized Hacks 3 | . 2 . . . 1 Terminals 3 | . 2 . . . 1 Botnet 2 | . 2 . . . . Operators 1 | . . . . . 1 Fabricators . | . . . . . . Repair Stations . | . . . . . . Recycling Units . | . . . . . . Scanalyzers . | . . . . . . Garrison Access . | . . . . . . Data Cores Recovered . | . . . . . . Used . | . . . . . . Hacking Detections 4 | . 2 1 . . 1 Full Trace Events . | . . . . . . Feedback Events . | . . . . . . Feedback Blocked . | . . . . . . Robot Schematics Acquired . | . . . . . . Robots Built . | . . . . . . Authchips . | . . . . . . Time . | . . . . . . Total Robot Build Rating . | . . . . . . Part Schematics Acquired . | . . . . . . Parts Built . | . . . . . . Authchips . | . . . . . . Time . | . . . . . . Total Part Build Rating . | . . . . . . Part Studies Acquired . | . . . . . . Parts Repaired . | . . . . . . Time . | . . . . . . Parts Recycled . | . . . . . . Recycled Matter . | . . . . . . Retrieved Matter . | . . . . . . Retrieved Components . | . . . . . . Parts Scanalyzed . | . . . . . . Part Schematics Acquired . | . . . . . . Parts Damaged . | . . . . . . Bothacking | -11 -10 -10 -10 -9 -8 ------------ Run | Yrd Mat Min Exi Min Mat Used RIF Installer . | . . . . . . Robots Hacked . | . . . . . . Non-combat . | . . . . . . Combat . | . . . . . . Robot Hacks Applied . | . . . . . . Relay Couplers Released . | . . . . . . Fabnet Peak Effective % . | . . . . . . Robots Rewired . | . . . . . . Allies Hacked . | . . . . . . Hacks Repelled . | . . . . . . Allies | -11 -10 -10 -10 -9 -8 -------- Run | Yrd Mat Min Exi Min Mat Total Allies 3 | . . . . 3 . Largest Group 3 | . . . . 3 3 Highest-Rated Group 40 | . . . . 40 40 Highest-Rated Ally 16 | . . . . 16 16 Total Orders . | . . . . . . Ally Attacks 27 | . . . . . 27 Total Damage 265 | . . . . . 265 Kills 3 | . . . . . 3 Allies Corrupted . | . . . . . . Allies Melted . | . . . . . . Intel | -11 -10 -10 -10 -9 -8 ------- Run | Yrd Mat Min Exi Min Mat Active Infowar (turns) 2642 | 44 384 881 599 113 621 Terrain 2642 | 44 384 881 599 113 621 Cloaking 37 | . . . 37 . . Robot Analysis Total . | . . . . . . Derelict Logs Recovered 1 | . . 1 . . . Drone Launches . | . . . . . . Drone Recoveries . | . . . . . . Exploration | -11 -10 -10 -10 -9 -8 ------------- Run | Yrd Mat Min Exi Min Mat Turns Passed 2745 | 147 384 881 599 113 621 Spaces Moved 1512 | 81 184 463 350 52 382 Core 10 | 10 . . . . . Treads 364 | 27 111 226 . . . Legs 14 | 14 . . . . . Wheels 103 | 30 73 . . . . Hover . | . . . . . . Flight 1021 | . . 237 350 52 382 Fastest Speed 50 | 50 100 117 117 197 112 Average Speed 161 | 127 184 173 170 197 130 Slowest Speed 240 | 190 240 240 197 197 197 Overloaded Moves . | . . . . . . Propulsion Burnouts . | . . . . . . Robots Hopped . | . . . . . . Potential Cave-ins . | . . . . . . Cave-ins Triggered . | . . . . . . Exploration Rate (%) 43 | 3 48 83 74 20 30 Regions Visited 5 Branch Regions 3 Pre-discovered Areas 1 | . . . 1 . . Known Exits Taken . | . . . . . . Unknown Exits Taken 5 | 1 1 1 1 1 . Scrap Searched 2 | . . 1 . 1 . Spaces Dug 27 | . . 27 . . . Terrain Destroyed 430 | . 66 185 . . 179 Melee . | . . . . . . Projectile . | . . . . . . AOE 430 | . 66 185 . . 179 Terrain Rammed . | . . . . . . Walls Destroyed . | . . . . . . Machines Disabled . | . . . . . . Actions | -11 -10 -10 -10 -9 -8 --------- Run | Yrd Mat Min Exi Min Mat Total 1720 | 110 217 517 353 63 460 Wait 55 | . 3 22 . 12 18 Move 1507 | 80 183 462 349 51 382 Hop . | . . . . . . Pick Up 31 | 15 9 2 1 . 4 Fast Attach . | . . . . . . Attach 19 | 7 1 4 . . 7 Detach 4 | . . 1 . . 3 Swap 11 | 1 2 4 2 . 2 Drop 15 | . 9 3 1 . 2 Fire 72 | 7 6 19 . . 40 Melee . | . . . . . . Ram 2 | . . . . . 2 Kick . | . . . . . . Crush 4 | . 4 . . . . Escape Stasis . | . . . . . . Rewire . | . . . . . . Trap . | . . . . . . Miscellaneous . | . . . . . . Route ------- -11/Scrapyard -10/Materials (discovered 2 exits: [*Mat] / *Min) -10/Mines (discovered 3 exits: [*Mat x2] / *Exi) -10/Exiles (discovered 2 exits: [*Min x2]) -9/Mines -8/Materials (discovered 1 exit: [*Fac]) History --------- Turn | Location | Event 2 | -11/Scrapyard | Met Revision 17 23 | -11/Scrapyard | Discovered new exit (range 14) 148 | -11/Scrapyard | Entered Materials 149 | -10/Materials | Met a group of wandering Federalists 254 | -10/Materials | Discovered new exit (range 15) 318 | -10/Materials | Build established: Mutant 486 | -10/Materials | Discovered new exit (range 16) 532 | -10/Materials | Entered Mines 909 | -10/Mines | YI-UF0 nonchalantly dropped a Grenade Launcher on the ground 990 | -10/Mines | Assembled infested the area 1168 | -10/Mines | Discovered new exit (range 6) 1183 | -10/Mines | Joined a pair of Derelicts in attacking an 0b10 outpost 1211 | -10/Mines | Core integrity fell below 50% 1258 | -10/Mines | Discovered new exit (range 7) 1283 | -10/Mines | Met a Derelict who couldn't figure out how to use a Trap Extractor 1372 | -10/Mines | Learned Materials non-interactive machine intel 1406 | -10/Mines | Build established: Scavenger-Mutant 1409 | -10/Mines | Deemed a non-threat by the Exiles lab entrance 1409 | -10/Mines | Discovered new exit (range 5) 1413 | -10/Mines | Entered Exiles 1431 | -10/Exiles | Discovered new exit (range 15) 1448 | -10/Exiles | Met 8R-AWN 1464 | -10/Exiles | Met EX-HEX 1499 | -10/Exiles | Met EX-BIN 1514 | -10/Exiles | Aligned with FarCom system 1516 | -10/Exiles | Given EX-Vault access code 1543 | -10/Exiles | Opened EX-Vault 1552 | -10/Exiles | Found Cloak of Protection 1596 | -10/Exiles | Warned to stay clear of 0b10 Research branches 1657 | -10/Exiles | Met EX-DEC 1669 | -10/Exiles | Learned location of Zion (-7) 1859 | -10/Exiles | Visited The Gauntlet 1859 | -10/Exiles | Build established: Mutant 1988 | -10/Exiles | Discovered new exit (range 14) 2012 | -10/Exiles | Left Exiles lab with Cloak of Protection 2012 | -10/Exiles | Entered Mines 2026 | -9/Mines | Assisted by bots powering up and referring to "LRC-V3" 2053 | -9/Mines | Discovered new exit (range 7) 2125 | -9/Mines | Entered Materials 2125 | -8/Materials | Accompanied by 3 allies 2125 | -8/Materials | Evolved 4 slots: Power x1, Propulsion x2, Utility x1 2126 | -8/Materials | Loaded intel: 46 non-interactive machine locations 2534 | -8/Materials | Discovered new exit (range 16) 2746 | -8/Materials | Self-destructed Last Messages --------------- 02721_ U-05 Engineer builds a Wall. 02721_ K-01 Serf collects debris. 02723_ U-05 Engineer lays Concrete. 02723_ W-25 Informer sends out distress signal. 02724_ K-01 Serf collects debris. 02724_ U-05 Engineer builds a Wall. 02724_ O-16 Technician destroyed. 02724_ K-01 Serf collects debris. 02725_ U-05 Engineer lays Concrete. 02728_ K-01 Serf collects debris. 02728_ U-05 Engineer lays Concrete. 02731_ Door malfunctions. 02731_ U-05 Engineer builds a Wall. 02735_ Chain reaction triggered in Lgt. Nuclear Core. 02735_ K-01 Serf destroyed. 02735_ U-05 Engineer lays Concrete. 02737_ U-05 Engineer builds a Wall. 02739_ Slammed into G-47 Trooper. 02741_ U-05 Engineer builds a Wall. 02741_ EM Pulse Gun destroyed. Map ----- +----------------------------------------------------+ | ????????????????????????????????????????????? | | ????????????????????????????????????????????? | | ????????????????????????????????????????????? | | ????????????????????????????????"""?????????? | | ????????????????????????????????"""?????????? | | ????????????????????????????????"""?????????? | | ????????????????????????????????????????????? | | ????????????????????????????????????????????? | | ??????????????????????"""???????????????????? | | ?????????????????????"""""??????????????????? | | ??????"""????????????"""""????????????H?????? | | ??????"""????????????"""""?? ???????????????? | | ??????"""?????????????"""???????????????????? | | ?????????????????? ??????????????? ?????????? | | ??????????????###???#??###??????????????????? | | ??????????#????????###?# ??????????????????? | | ????????????? ?? ? ? ? ???#???#??#?????? | | ?????#?#?#?????""" ?? ?? ##????#???????????? | | ???#??#?#???#? """ ? # #??? ?????????????? | | ???#??###?### ?"""???? ? # """?"""?"""?????? | | ###? ? ? #? ? ?"T??# # """?"""?"""?????? | | ###?""" """ ##?######### +?"""?"""?"""?????? | | # """ """ ##### ## # ?????? ?? ????? | | # """ """ ##### ## #? ??w? ?? ??????? | | " # """ " " ###?#""" ## #?#+#?###?##??????? | | " # """ " " #####""" ##@###?????#???#?????? | | " # ##""" ## ##??##? ??#???????? | | ?# # #; ;##?#?? ??????????? | | +######+ ## #######/#"; ;## ### ? ##??????? | | g%= !#?#?#???? | | !#???????? | | !##?#?????? | | ## ###############+#####???????? | | ### """ """? ?????????????? | | ##### %= # # """?""" ???#????#?????? | | # ## """?"""? ?#??#?#??????? | | | = # # # ? ? ????#?????????? | | #####? ? ?? ????#?##???????? | | ##?##?? ????????##??????????? | | # ##### ? ?? ?? ????????????? | | ## ## ###??###?/???#??????????????? | | ##### # """ ? ??????#?????????????? | | ##### "T" = # """ # ????????????????????? | | """ + """ ? ? ???????????????? | | #? ?? ??? ????????????????? | | # ????????????????????????? | | # ##### ###??? ???????????????????????? | | # ##### ### ??#?????????????????????? | | # !]]!!##### ####??????????????????????????? | | #!!]]!!##### #####?????????????????????????? | +----------------------------------------------------+ Best States ------------- Heat Dissipation 31 Energy Generation 12 Energy Capacity 265 Matter Stores 300 Matter Capacity 300 Sight Range 16 Terrain Scan Range 16 Terrain Scan Density 210 Cloak Strength 5 Evasion (%) 50 Recoil Reduction 1 Item Schematics ----------------- None Robot Schematics ------------------ None Fabricated ------------ Nothing Repaired ---------- Nothing Studied --------- None Alien Tech Used ----------------- None Achievements -------------- None Challenges ------------ None Game ------ Seed RefineryDisruptionDatajack Manual? 0 Play Time 00:24:08 Cumulative 16.3 hours Start 2026.06.28 @ 19:26:52 End 2026.06.28 @ 20:12:41 Sessions 3 Manual Loads 0 Difficulty Rogue Special Mode None Game No. 45 Rogue 45 Adventurer 0 Explorer 0 Win Type - Total 0 Types 0/0/0/0/0/0/0/0/0/0 Lore% 10 Gallery% 18 Achievement% 16 Wizard Run 0 Options --------- Layout 1 ASCII 0 Keyboard 0 Movement Mouse Keybinds 0 Fullscreen 1 Font 24/Smallcaps Map View 76x35 Zoom Use 0% Tactical HUD 1 Map Filters NONE Filters NONE Steam 1 RUN: 9aeb3c8d-98d3-4fb6-b184-098b96615d20